bitfinex/quotes_ETHUSD_20250107
["timestamp","ask_amount","ask_price","bid_price","bid_amount"]
[1736286874722,0.0075,3384.2,3383.8,3.69124027]
[1736286875213,0.0075,3384.1,3383.8,3.6616894]
[1736286875408,0.0075,3384.1,3383.8,0.8005]
[1736286875626,0.0075,3384.1,3383.4,1.0072]
[1736286875627,2.95519,3383.9,3383.4,1.0072]
[1736286875941,0.06319029,3383.8,3383.4,1.0072]
[1736286876245,0.06319029,3383.8,3383.5,35.0]
[1736286876554,0.06319029,3383.8,3383.5,35.229]
[1736286876713,0.05569029,3383.8,3383.6,2.89074119]
[1736286876913,2.95484,3384.3,3383.6,2.89074119]
[1736286877125,0.06319029,3384.2,3383.6,0.02955179]
[1736286877336,0.06319029,3384.2,3383.7,35.0]
[1736286877512,2.95394,3385.3,3383.9,2.86162323]
[1736286877736,0.05569029,3385.2,3384.2,2.86162323]
[1736286877901,3.0,3385.1,3384.3,0.81484219]
[1736286878105,0.05569029,3385.0,3384.4,0.89213454]
[1736286878335,0.0075,3384.9,3384.5,35.02954219]
[1736286878519,3.0,3385.5,3384.5,35.0]
[1736286878696,2.95411,3385.2,3384.7,0.7853]
[1736286878898,2.95414,3385.1,3384.7,0.7853]
[1736286879098,0.05725812,3385.0,3384.7,0.7853]
[1736286879311,0.05725812,3385.0,3384.8,35.0]
[1736286879508,0.0075,3384.9,3384.8,35.0]
[1736286880157,3.0075,3385.1,3384.8,35.0]
[1736286880672,0.0075,3384.9,3384.7,0.7853]
[1736286880969,0.0075,3384.9,3384.8,35.229]
[1736286881144,2.96171,3385.0,3384.8,0.229]
[1736286881326,3.0075,3384.9,3384.8,0.229]
[1736286881522,3.0075,3384.9,3384.8,35.229]
[1736286882022,3.0075,3384.9,3384.8,0.229]
[1736286882338,0.0075,3384.9,3384.8,0.229]
[1736286883339,0.06496919,3384.9,3384.8,0.229]
[1736286883735,0.04853328,3384.9,3384.8,0.229]
[1736286886373,0.0075,3385.0,3384.8,0.229]
[1736286886675,0.0075,3385.0,3384.8,3.09062323]
[1736286886676,0.05717132,3384.9,3384.8,3.09062323]
[1736286886979,2.9536,3385.7,3384.8,3.09062323]
[1736286887185,2.9536,3385.7,3384.9,0.78483659]
[1736286887549,0.0075,3385.5,3384.9,0.78483659]
[1736286887736,0.0075,3385.5,3385.0,35.38754598]
[1736286887938,0.05803183,3385.4,3385.1,0.02953675]
[1736286888185,0.0075,3385.3,3385.1,0.02953675]
[1736286888556,0.0075,3385.6,3385.2,35.0]
[1736286888754,0.05803183,3385.5,3385.2,35.0]
[1736286889059,2.95329,3386.1,3385.4,0.7553]
[1736286889469,0.05803183,3386.0,3385.4,0.7553]
[1736286889738,3.05803183,3386.0,3385.5,35.0]
[1736286889939,3.0,3386.0,3385.5,35.0]
[1736286890231,0.05803183,3385.9,3385.5,35.0]
[1736286890483,0.0075,3385.8,3385.6,2.8611894]
[1736286890692,0.0075,3385.8,3385.7,0.229]
[1736286891050,5.95285,3386.6,3385.7,35.229]
[1736286891051,3.0,3386.0,3385.7,35.229]
[1736286891264,0.0075,3385.9,3385.7,35.229]
[1736286891490,0.06553183,3385.9,3385.7,35.229]
[1736286891702,0.06553183,3385.9,3385.8,2.8611894]
[1736286891894,0.0075,3385.9,3385.8,2.8611894]
[1736286892108,0.0075,3386.2,3385.8,2.8611894]
[1736286892265,3.0075,3386.2,3385.8,2.8611894]
[1736286892460,0.05803183,3386.1,3385.9,0.7553]
[1736286892676,0.05803183,3386.1,3386.0,5.72281263]
[1736286892881,2.95281,3386.6,3385.0,0.38754598]
[1736286893083,0.89,3386.3,3383.4,8.84]
[1736286893263,8.86,3383.8,3380.2,8.72833223]
[1736286893497,8.86,3383.8,3376.5,0.7553]
[1736286893498,0.5,3374.8,3374.7,18.21714328]
[1736286893649,6.57557,3374.3,3374.2,47.70642503]
[1736286893851,0.75,3372.6,3371.6,14.29043368]
[1736286894184,6.57786,3371.7,3371.6,14.29043368]
[1736286894386,0.25,3373.0,3371.6,14.29043368]
[1736286894612,2.9657,3371.9,3371.8,2.86162323]
[1736286894771,2.14545953,3371.9,3371.7,2.8611894]
[1736286894973,0.25,3374.5,3371.8,0.69875502]
[1736286895172,0.25,3374.5,3373.2,2.86162323]
[1736286895173,0.44620612,3373.3,3373.2,2.86162323]
[1736286895497,0.44620612,3373.3,3373.2,4.61588675]
[1736286895813,11.20620515,3374.0,3373.2,4.47352055]
[1736286895951,0.39985799,3374.0,3373.9,3.90372443]
[1736286896153,0.25,3377.2,3374.4,0.25]
[1736286896354,0.79860143,3378.2,3376.0,3.90372443]
[1736286896598,3.112,3379.4,3376.6,3.90372443]
[1736286896812,0.18532852,3378.1,3377.5,0.25]
[1736286896953,2.95865,3380.0,3378.7,0.25]
[1736286897310,1.44199724,3381.9,3379.5,0.25]
[1736286897519,0.25,3379.6,3379.1,3.90372443]
[1736286897807,0.25,3378.4,3377.7,3.90372443]
[1736286897969,0.25,3377.8,3377.7,3.90372443]
[1736286898172,0.25,3378.3,3377.7,0.83837244]
[1736286898379,0.25,3378.3,3378.2,3.90372443]
[1736286898701,0.25,3378.3,3378.0,3.90372443]
[1736286898904,0.25,3377.4,3376.5,0.25666332]
[1736286899224,0.8,3377.3,3376.6,0.88716633]
[1736286899509,3.0,3378.2,3376.6,0.88716633]
[1736286899510,0.0075,3377.0,3376.6,0.88716633]
[1736286899691,0.0075,3377.0,3376.1,0.39037244]
[1736286899692,0.25,3377.7,3376.4,0.65592046]
[1736286899858,0.28701753,3378.1,3377.0,2.96114]
[1736286900197,0.25,3377.9,3377.0,2.96114]
[1736286900405,0.03587167,3378.0,3377.1,0.50282793]
[1736286900567,0.28701753,3378.1,3377.1,3.46389793]
[1736286900750,0.03871077,3377.9,3377.1,3.16778393]
[1736286900957,8.86,3377.7,3377.1,3.16778393]
[1736286901156,8.86,3377.3,3377.2,0.20671393]
[1736286901404,0.0075,3377.3,3377.2,0.20671393]
[1736286901710,0.59621077,3377.3,3377.2,0.20671393]
[1736286901944,0.03871077,3377.3,3377.1,0.02228999]
[1736286902126,8.86,3378.0,3376.9,3.90372443]
[1736286902294,0.03742041,3377.2,3377.0,4.03130744]
[1736286902490,3.31657949,3377.2,3377.1,0.448]
[1736286902908,3.30907949,3377.2,3377.1,0.448]
[1736286903192,6.26118052,3377.2,3377.1,0.448]
[1736286903493,15.12118052,3377.2,3377.1,0.448]
[1736286903692,8.86,3377.8,3377.7,2.96059]
[1736286903893,8.86,3378.2,3377.4,2.96081]
[1736286904139,0.2870069,3378.1,3377.5,0.448]
[1736286904365,8.86,3378.2,3378.0,2.96032]
[1736286904638,8.86,3378.2,3376.6,3.0]
[1736286904639,0.28700159,3378.1,3377.6,0.448]
[1736286904873,8.86,3378.0,3377.7,0.448]
[1736286905148,8.86,3378.0,3377.8,3.40846]
[1736286905304,8.86,3378.0,3377.9,0.448]
[1736286905508,15.71812759,3378.3,3377.9,0.448]
[1736286905509,8.86,3378.2,3377.9,0.448]
[1736286905704,8.86,3378.2,3378.0,0.448]
[1736286906252,18.87541146,3378.1,3378.0,0.448]
[1736286906946,0.25,3377.7,3377.4,0.448]
[1736286907251,8.86,3378.0,3377.4,0.448]
[1736286907402,0.0075,3377.9,3377.6,2.96063]
[1736286907597,8.86,3377.8,3377.7,2.96056]
[1736286907797,8.86,3377.8,3377.4,2.96085]
[1736286908130,3.43736449,3377.8,3377.5,0.448]
[1736286908332,0.0075,3377.7,3377.5,0.448]
[1736286908705,0.0075,3377.7,3377.6,0.448]
[1736286908901,0.0075,3377.8,3377.6,0.448]
[1736286909423,0.2575,3377.8,3377.6,0.448]
[1736286909624,0.2575,3377.6,3376.6,2.96153]
[1736286909841,0.29451121,3377.6,3376.7,0.448]
[1736286910056,0.29451121,3377.6,3376.7,4.164903]
[1736286910426,0.00235973,3377.5,3376.8,0.43]
[1736286910867,8.8675,3377.0,3376.8,0.43]
[1736286911171,8.8675,3377.0,3376.9,0.43]
[1736286911358,8.8675,3377.0,3376.9,0.42764028]
[1736286911519,0.89,3376.6,3373.8,0.83922292]
[1736286911721,0.0075,3375.4,3373.4,6.86808443]
[1736286911972,7.61506961,3376.2,3375.2,3.90372443]
[1736286912134,7.61506961,3376.5,3375.2,3.90372443]
[1736286912339,4.14616571,3376.0,3375.4,0.42482747]
[1736286912686,0.0075,3375.7,3375.5,0.43]
[1736286912841,7.61506961,3375.8,3375.5,0.43]
[1736286913042,7.61506961,3375.8,3375.5,3.3925]
[1736286913350,5.87718989,3375.6,3375.5,0.43]
[1736286913552,5.91099161,3375.7,3375.5,0.43]
[1736286913891,5.87718989,3375.7,3375.5,0.43]
[1736286914172,7.62256961,3375.3,3374.6,0.43]
[1736286914329,0.0075,3375.1,3374.6,0.43]
[1736286914530,0.0075,3374.9,3374.6,0.43]
[1736286915246,7.62256961,3374.7,3374.6,0.43]
[1736286915631,7.62256961,3374.7,3374.1,6.73347516]
[1736286915826,7.65500963,3374.7,3374.1,1.5787609]
[1736286916028,7.65500963,3374.7,3374.3,2.96355]
[1736286916330,3.80194281,3375.6,3374.8,2.96306]
[1736286916527,3.80194281,3375.6,3374.9,0.43]
[1736286916772,6.63,3375.5,3374.9,0.43]
[1736286917025,0.25,3375.1,3373.2,0.14379612]
[1736286917187,7.1875,3374.6,3373.2,4.13551455]
[1736286917389,0.5575,3374.3,3373.2,3.10826612]
[1736286917614,6.66704741,3374.2,3373.2,0.14379612]
[1736286917951,0.25,3373.4,3372.5,0.43]
[1736286918222,0.25,3373.4,3372.3,0.8236]
[1736286918223,0.0075,3373.0,3372.3,0.8236]
[1736286919029,0.0075,3373.0,3371.3,0.58421066]
[1736286919030,0.0075,3372.8,3371.3,0.58421066]
[1736286919173,6.63,3372.9,3371.6,2.96589]
[1736286919377,6.63,3372.9,3372.4,2.96523]
[1736286919623,0.0075,3372.8,3372.4,2.96523]
[1736286920197,6.63,3373.1,3372.0,3.0]
[1736286920425,6.63,3373.1,3372.1,0.0075]
[1736286920576,6.63,3373.7,3372.9,2.96477]
[1736286920905,0.0075,3373.6,3373.0,3.295677]
[1736286921107,0.0075,3373.6,3373.0,3.260337]
[1736286921325,0.0075,3373.6,3372.6,0.7677782]
[1736286921528,0.0075,3373.6,3372.5,2.96508]
[1736286921736,0.0075,3373.6,3373.0,2.96471]
[1736286922225,0.0075,3373.6,3373.2,0.00296]
[1736286922426,0.04455383,3373.6,3373.2,0.00296]
[1736286922630,0.2575,3373.4,3373.2,0.00296]
[1736286922929,0.5575,3373.3,3373.2,0.00296]
[1736286923076,0.5575,3373.0,3371.7,0.339689]
[1736286923274,6.62454,3372.4,3371.6,0.8307]
[1736286923621,0.02808397,3372.3,3372.2,2.96542]
[1736286924123,6.61704,3373.3,3372.0,0.0075]
[1736286924294,6.61704,3373.3,3372.9,2.9648]
[1736286924499,6.61704,3373.5,3373.0,2.9647]
[1736286924677,6.61704,3373.5,3372.9,0.29648]
[1736286925512,0.0075,3373.4,3373.0,2.9647]
[1736286925745,2.96361,3374.3,3373.9,2.96388]
[1736286925746,0.25,3374.3,3373.9,2.96388]
[1736286925881,0.25,3374.3,3373.2,2.96452]
[1736286925882,6.61704,3374.4,3373.2,3.39547]
[1736286926086,6.86704,3374.4,3373.8,2.96401]
[1736286926319,6.61704,3374.3,3373.9,2.96392]
[1736286926585,6.61704,3374.3,3373.3,0.420757]
[1736286926586,0.0075,3374.2,3373.5,2.96423]
[1736286926942,0.0075,3374.2,3373.3,0.420757]
[1736286926943,0.0075,3373.9,3373.3,0.420757]
[1736286927133,6.61704,3374.2,3373.4,0.3816357]
[1736286927423,6.61704,3374.2,3373.3,2.96438]
[1736286927632,6.61704,3374.2,3373.1,0.431]
[1736286927783,0.0075,3373.8,3373.1,0.431]
[1736286928134,0.0075,3373.6,3373.1,3.39562]
[1736286928485,0.0075,3373.0,3372.6,2.96505]
[1736286928700,6.61704,3373.1,3372.4,0.0075]
[1736286928877,0.02631227,3372.9,3372.8,5.96489]
[1736286929093,6.50610531,3374.2,3372.9,0.0075]
[1736286929299,6.25610531,3374.2,3373.7,2.9641]
[1736286929524,0.25,3373.9,3373.7,2.9641]
[1736286929890,0.0075,3374.1,3373.7,2.9641]
[1736286930104,0.25,3373.9,3373.5,2.96426]
[1736286930523,0.0075,3374.1,3373.5,2.96426]
[1736286930902,0.25,3373.9,3373.5,2.96426]
[1736286931098,6.25610531,3374.2,3373.9,2.96392]
[1736286931401,6.25610531,3374.2,3373.4,2.96436]
[1736286931402,6.25610531,3374.2,3373.4,0.0075]
[1736286931599,6.25610531,3374.2,3373.5,0.3303953]
[1736286931917,6.25610531,3374.2,3373.4,0.0075]
[1736286932125,6.25610531,3374.2,3373.9,2.96389]
[1736286932341,0.0075,3374.1,3373.5,3.0]
[1736286932651,0.0075,3374.1,3372.1,2.96545]
[1736286932652,6.25610531,3373.8,3372.1,2.96545]
[1736286932938,0.0075,3373.4,3372.4,0.97601043]
[1736286933145,0.0075,3373.4,3373.0,2.9647]
[1736286933345,0.25,3373.7,3372.7,3.0]
[1736286933643,0.0075,3373.6,3373.1,2.96457]
[1736286933847,0.0075,3373.6,3373.2,0.296457]
[1736286935242,6.51360531,3373.4,3372.7,3.0]
[1736286935443,0.0075,3373.4,3372.3,3.0]
[1736286935799,0.0075,3373.6,3373.1,2.96461]
[1736286935951,0.0075,3373.6,3372.5,0.0075]
[1736286936153,0.25,3374.2,3372.8,0.0075]
[1736286936306,0.25,3374.4,3373.8,2.96399]
[1736286936502,6.50610531,3374.5,3373.8,2.96399]
[1736286936705,6.25610531,3374.4,3373.1,0.0075]
[1736286936904,0.25,3374.2,3373.3,0.0075]
[1736286937120,0.25,3374.2,3373.5,2.96424]
[1736286937310,0.0075,3374.1,3373.6,0.297174]
[1736286937509,0.0075,3374.1,3373.7,3.0]
[1736286938457,0.0075,3374.3,3373.3,3.0075]
[1736286938663,0.0075,3374.3,3373.7,2.96403]
[1736286938843,0.0075,3374.3,3373.5,3.0]
[1736286939052,0.0075,3374.3,3373.7,2.96402]
[1736286939345,0.0075,3374.3,3373.8,0.596402]
[1736286939595,0.25,3374.4,3373.8,0.596402]
[1736286939893,0.0075,3374.1,3373.8,3.560412]
[1736286940190,6.50610531,3374.7,3373.8,0.596402]
[1736286940484,0.25,3374.7,3374.1,3.0]
[1736286941072,0.02622816,3374.6,3374.1,3.0]
[1736286941272,0.0075,3374.5,3374.1,3.0]
[1736286941459,6.26360531,3374.1,3373.4,0.419]
[1736286941662,0.2575,3373.9,3373.2,3.55171542]
[1736286941891,0.2575,3373.9,3373.3,3.35517154]
[1736286942247,0.0075,3373.7,3373.3,0.35517154]
[1736286942843,0.0075,3373.8,3373.3,0.35517154]
[1736286943196,6.25610531,3373.4,3372.6,1.5772]
[1736286943366,0.02698029,3373.7,3373.3,2.96445]
[1736286943701,0.0075,3373.7,3373.3,2.96445]
[1736286943845,0.0075,3373.7,3372.6,4.5772]
[1736286943846,0.02698029,3373.6,3373.4,2.96436]
[1736286944050,0.02698029,3373.6,3373.0,3.0]
[1736286944350,0.25,3373.8,3373.3,2.96444]
[1736286944551,0.02698029,3373.5,3373.4,2.96435]
[1736286944893,0.25,3373.8,3373.4,2.96435]
[1736286945402,0.02698029,3373.7,3373.4,2.96435]
[1736286945552,0.25,3373.8,3373.4,2.96435]
[1736286945893,0.02698029,3373.6,3373.4,3.3204327]
[1736286946093,0.25,3373.8,3373.4,3.3204327]
[1736286946395,0.02698029,3373.7,3373.2,3.0]
[1736286946599,6.25610531,3373.6,3372.6,2.15755978]
[1736286946899,0.0075,3373.3,3372.6,3.54534978]
[1736286947119,0.0075,3373.3,3372.7,3.0]
[1736286947316,0.0075,3373.3,3372.0,1.6106]
[1736286947317,0.0075,3372.8,3372.0,1.6106]
[1736286947623,0.0075,3372.5,3372.1,2.9655]
[1736286947768,0.0075,3372.5,3372.2,3.0]
[1736286948112,0.0075,3372.5,3372.1,2.9655]
[1736286948326,0.25,3372.6,3371.4,0.0075]
[1736286948492,0.02650617,3372.4,3371.6,0.0075]
[1736286948701,0.02650617,3372.4,3372.3,2.96533]
[1736286948917,6.25610531,3372.9,3372.0,3.0]
[1736286949216,6.25610531,3372.9,3372.5,2.96514]
[1736286949530,0.0075,3372.8,3372.5,2.96508]
[1736286950138,2.96415,3373.7,3372.3,3.0]
[1736286950139,0.25,3373.5,3372.4,0.0075]
[1736286950524,0.25,3373.8,3372.7,0.0075]
[1736286950682,0.25,3373.8,3373.5,2.96426]
[1736286950888,0.25,3373.6,3372.9,3.0]
[1736286951216,0.25,3373.8,3373.4,2.96435]
[1736286951825,0.0075,3373.3,3373.0,2.96468]
[1736286952187,0.0075,3373.3,3372.9,3.0]
[1736286952389,6.26360531,3373.5,3372.6,1.5388]
[1736286952734,0.2575,3373.3,3372.6,2.965]
[1736286952895,0.2575,3373.3,3372.4,0.58346406]
[1736286953100,0.25,3373.1,3372.6,2.96505]
[1736286953898,0.25,3372.9,3372.4,0.58346406]
[1736286954098,0.0075,3372.6,3371.4,4.53694]
[1736286954301,0.0075,3372.3,3371.6,0.5876753]
[1736286954782,6.26360531,3372.3,3371.6,0.5876753]
[1736286954983,0.2575,3372.1,3370.8,2.1441571]
[1736286955304,0.0075,3371.6,3371.3,0.59034439]
[1736286955500,6.26360531,3371.6,3370.8,0.1722571]
[1736286955699,0.25,3371.3,3370.8,0.1722571]
[1736286956031,0.0075,3371.2,3370.9,2.96655]
[1736286956218,0.0075,3371.2,3370.8,0.1722571]
[1736286956533,6.51360531,3370.9,3370.8,0.1722571]
[1736286956732,6.26360531,3370.9,3370.8,0.1722571]
[1736286957197,6.25610531,3370.9,3370.8,0.1722571]
[1736286957404,9.23016531,3370.9,3370.8,0.1722571]
[1736286957590,10.83036531,3370.9,3370.8,0.1722571]
[1736286957786,3.52477,3370.1,3370.0,0.5]
[1736286958133,6.30070313,3370.1,3370.0,0.5]
[1736286958313,0.0075,3370.1,3370.0,0.5]
[1736286958532,1.6002,3370.1,3370.0,0.0542571]
[1736286958685,1.6002,3370.1,3368.3,2.96884]
[1736286958686,0.25,3369.0,3368.3,2.96884]
[1736286958888,0.0075,3368.1,3367.6,32.84903752]
[1736286959400,0.25,3367.9,3367.6,32.84903752]
[1736286959586,3.00579378,3368.5,3367.6,32.84903752]
[1736286959587,0.25,3367.7,3367.6,32.84903752]
[1736286959791,0.25,3368.2,3367.6,32.84903752]
[1736286959986,0.25,3368.1,3367.6,35.81849752]
[1736286960188,0.0075,3368.0,3367.7,2.8611894]
[1736286960394,0.25,3368.3,3367.8,2.96928]
[1736286960713,6.50610531,3368.6,3367.7,2.8611894]
[1736286961017,0.25,3368.8,3368.2,2.96889]
[1736286961402,0.25,3369.0,3367.8,5.96929]
[1736286961602,0.25,3369.0,3367.9,2.8611894]
[1736286961802,0.25,3368.8,3368.1,3.0]
[1736286962003,0.25,3369.1,3368.7,2.96847]
[1736286962252,0.25,3369.0,3368.7,2.96847]
[1736286962543,0.25,3369.1,3368.7,2.96847]
[1736286962744,0.25,3368.8,3368.7,2.96847]
[1736286962984,0.25,3368.8,3368.7,3.265317]
[1736286963182,0.25,3369.4,3368.7,0.296847]
[1736286963337,0.25,3369.6,3369.2,2.96798]
[1736286963536,0.25,3370.3,3370.0,2.96734]
[1736286963769,0.25,3370.4,3370.0,2.96734]
[1736286964148,0.25,3370.4,3370.2,2.96714]
[1736286964356,0.25,3370.2,3369.6,3.0]
[1736286964567,0.25,3369.5,3369.2,2.96802]
[1736286964779,0.25,3369.1,3368.4,2.96873]
[1736286964980,0.25,3369.8,3368.6,0.0075]
[1736286965289,0.25,3369.4,3369.3,2.96797]
[1736286965433,0.25,3369.8,3369.5,2.96779]
[1736286965638,0.25,3369.6,3369.5,2.96779]
[1736286965991,0.25,3369.6,3369.5,0.296779]
[1736286966140,0.25,3369.6,3369.4,3.0]
[1736286966336,0.25,3369.6,3369.5,2.96779]
[1736286966652,0.25,3368.9,3368.3,2.96879]
[1736286966855,0.25,3368.9,3368.8,2.96841]
[1736286967072,0.25,3368.7,3368.3,3.55831155]
[1736286967269,0.25,3368.5,3368.1,1.5434]
[1736286967482,0.25,3368.5,3368.4,2.96868]
[1736286967655,0.25,3369.0,3368.5,2.96867]
[1736286967858,0.25,3368.6,3368.3,2.96885]
[1736286968382,0.25,3368.8,3368.3,2.96885]
[1736286968592,0.25,3368.4,3368.3,2.96885]
[1736286968798,0.25,3368.8,3368.2,1.09601714]
[1736286968942,0.25,3368.3,3367.8,2.96928]
[1736286969485,0.25,3368.2,3367.8,2.96928]
[1736286969666,0.25,3368.0,3367.9,2.9692]
[1736286970192,0.25,3368.0,3367.8,3.0]
[1736286970339,0.25,3368.0,3367.8,5.96921]
[1736286970659,0.015625,3368.6,3368.2,2.96888]
[1736286971001,0.015625,3368.9,3368.1,3.0]
[1736286971291,0.015625,3369.2,3368.5,3.0]
[1736286971583,6.24763226,3369.5,3368.8,2.96839]
[1736286971785,6.24763226,3369.5,3368.5,3.0]
[1736286971987,2.96719,3370.2,3368.9,2.96824]
[1736286972291,6.23763226,3370.6,3369.4,2.96787]
[1736286972582,6.23763226,3370.6,3369.5,3.0]
[1736286972791,6.23763226,3370.6,3370.0,2.96735]
[1736286972959,6.23763226,3370.6,3370.2,2.96715]
[1736286973285,6.23763226,3370.6,3369.5,3.0]
[1736286973515,6.23763226,3370.6,3369.6,0.596782]
[1736286973925,6.23763226,3370.6,3369.8,2.96745]
[1736286974122,6.23763226,3370.6,3369.9,2.96744]
[1736286974421,0.0075,3370.5,3369.7,2.9676]
[1736286974592,0.0075,3370.5,3369.8,2.96748]
[1736286974793,0.0075,3370.5,3369.8,3.38265776]
[1736286975019,6.23763226,3370.6,3369.8,0.41517776]
[1736286975236,6.23763226,3370.6,3369.8,2.96753]
[1736286975516,6.23763226,3370.6,3369.7,3.0]
[1736286975820,6.23763226,3370.6,3370.2,2.96715]
[1736286976622,0.0075,3371.1,3370.2,2.96715]
[1736286976804,0.04458275,3371.1,3369.5,0.58751558]
[1736286977005,0.0075,3371.0,3369.9,2.96739]
[1736286977795,0.0075,3371.0,3369.9,3.264129]
[1736286978322,0.5575,3371.0,3369.5,0.58751558]
[1736286978523,0.0075,3370.8,3369.5,2.96776]
[1736286978830,0.0075,3370.4,3369.6,3.0]
[1736286978992,0.04458938,3370.4,3369.6,3.0]
[1736286979194,0.0075,3370.5,3369.6,3.0]
[1736286979399,0.0075,3370.3,3368.8,0.402]
[1736286979617,3.01176255,3370.3,3368.8,0.401]
[1736286979891,0.04459255,3370.3,3369.3,2.96794]
[1736286980533,0.04459255,3370.3,3369.4,2.96787]
[1736286980820,0.04459255,3370.3,3369.4,3.3238332]
[1736286982484,6.23763226,3370.4,3369.4,0.3559632]
[1736286982833,6.23763226,3371.1,3369.9,1.5538]
[1736286983329,6.23763226,3371.7,3370.8,2.96664]
[1736286983630,0.03707736,3371.6,3370.8,2.96664]
[1736286983825,6.23763226,3371.7,3370.9,2.96654]
[1736286983982,0.03707725,3371.6,3370.2,0.59532359]
[1736286984181,0.0075,3371.1,3370.4,2.96693]
[1736286984384,0.03707725,3371.2,3370.4,2.96693]
[1736286984385,0.03707725,3371.2,3370.4,0.35622536]
[1736286984653,0.03708106,3371.6,3370.8,2.96662]
[1736286984828,6.23763226,3371.7,3370.4,0.35622536]
[1736286984992,1.5392,3372.8,3370.7,0.0075]
[1736286985342,6.27470125,3372.7,3371.8,2.96577]
[1736286985498,6.27470125,3372.7,3371.0,8.43772443]
[1736286985499,6.23763226,3372.6,3371.9,37.96561]
[1736286985704,6.23763226,3372.5,3371.9,35.0]
[1736286985921,6.23763226,3372.5,3371.9,37.96567]
[1736286986100,6.23763226,3372.5,3372.0,2.96552]
[1736286986610,6.23763226,3372.5,3371.7,2.96578]
[1736286986814,6.23763226,3372.5,3372.1,35.0]
[1736286987240,0.0075,3372.4,3372.1,35.0]
[1736286988334,6.23763226,3372.5,3372.2,2.96534]
[1736286988543,6.23763226,3372.5,3372.1,36.0801604]
[1736286988847,6.23763226,3372.5,3372.1,35.0]
[1736286989770,0.0075,3372.2,3372.1,35.0]
[1736286990061,0.0075,3372.0,3371.6,2.96593]
[1736286990397,6.23763226,3372.1,3371.7,35.0]
[1736286990626,1.5392,3372.8,3371.7,35.0]
[1736286990627,6.23763226,3372.7,3371.8,2.8611894]
[1736286990896,0.0075,3372.6,3371.8,2.8611894]
[1736286991437,6.23763226,3372.7,3371.8,2.8611894]
[1736286991601,6.23763226,3372.7,3372.2,2.96534]
[1736286991801,6.23763226,3372.7,3371.8,2.8611894]
[1736286992010,6.23763226,3372.7,3372.2,2.96535]
[1736286992225,6.23763226,3372.7,3372.3,35.0]
[1736286993960,2.96524,3372.4,3371.3,2.96613]
[1736286994156,0.0075,3372.2,3371.3,2.96613]
[1736286994510,0.0075,3372.2,3371.4,35.0]
[1736286994710,0.0075,3372.2,3371.5,2.96596]
[1736286995026,0.0075,3372.3,3371.5,2.96596]
[1736286995241,0.0075,3372.3,3371.2,3.59390023]
[1736286995415,6.23763226,3372.2,3371.7,2.96584]
[1736286995610,6.23763226,3372.2,3372.1,2.96551]
[1736286996215,6.23763226,3372.2,3372.1,37.96551]
[1736286996807,6.23763226,3373.1,3372.6,2.96506]
[1736286997225,6.23763226,3373.1,3372.2,2.96542]
[1736286997226,0.0075,3373.0,3372.7,2.96497]
[1736286997560,6.23763226,3373.3,3373.0,2.96467]
[1736286997711,6.23763226,3373.3,3372.8,35.0]
[1736286998056,6.23763226,3373.3,3372.8,2.96486]
[1736286998240,6.23763226,3373.3,3372.9,2.96473]
[1736286998460,6.23763226,3373.3,3373.1,35.0]
[1736286998627,6.23763226,3373.3,3373.1,37.96457]
[1736286999312,6.23763226,3373.7,3373.1,2.8611894]
[1736286999514,6.23763226,3373.8,3373.2,2.96453]
[1736286999793,6.23763226,3373.8,3373.6,2.96411]
[1736286999994,6.23763226,3373.8,3373.5,35.0]
[1736287000140,0.0075,3373.7,3373.5,35.0]
[1736287000339,6.23763226,3373.8,3373.5,35.0]
[1736287001293,0.0075,3373.7,3373.5,35.0]
[1736287002304,6.23763226,3373.8,3373.5,35.0]
[1736287002992,6.23763226,3373.8,3373.5,37.96427]
[1736287003192,6.23763226,3373.8,3373.5,40.8254594]
[1736287003512,6.23763226,3373.8,3373.7,2.9641]
[1736287003701,6.23763226,3374.5,3373.7,2.9641]
[1736287004191,6.23763226,3374.5,3373.5,37.8611894]
[1736287004498,1.5798,3374.7,3372.7,0.306497]
[1736287004499,0.0075,3374.0,3372.7,0.306497]
[1736287004672,0.0075,3373.6,3372.7,0.01]
[1736287004879,2.9647,3373.1,3372.7,0.01]
[1736287005083,6.23763226,3373.0,3372.8,35.0]
[1736287005612,6.23763226,3373.0,3372.8,37.96485]
[1736287005815,6.23763226,3373.0,3372.8,39.36073052]
[1736287006358,6.23763226,3373.0,3372.8,36.39588052]
[1736287006592,6.23763226,3373.0,3372.8,35.0]
[1736287007014,6.23763226,3373.0,3372.9,2.9648]
[1736287007603,6.23763226,3373.6,3372.9,35.0]
[1736287007802,6.23763226,3374.0,3373.4,2.96429]
[1736287008003,6.23763226,3374.0,3373.4,3.260719]
[1736287008503,6.23763226,3374.0,3373.4,0.296429]
[1736287008504,0.0075,3373.9,3373.4,0.296429]
[1736287009421,6.24513226,3373.3,3372.9,35.59793098]
[1736287009617,6.23763226,3373.2,3372.9,35.0]
[1736287011250,0.0075,3373.1,3372.9,35.0]
[1736287011464,10.77594226,3373.0,3372.9,35.0]
[1736287012672,0.0075,3372.9,3372.7,0.01]
[1736287013144,3.00936267,3372.9,3372.8,35.0]
[1736287013344,2.9723,3372.9,3372.8,35.0]
[1736287014439,3.0093619,3372.9,3372.8,35.0]
[1736287014639,9.24699416,3372.9,3372.8,35.0]
[1736287014838,9.20993226,3372.9,3372.8,35.0]
[1736287016188,6.24513226,3372.9,3372.8,35.0]
[1736287017593,6.23763226,3372.9,3372.8,35.5724117]
[1736287024638,6.23763226,3372.9,3372.8,38.5373017]